bitfinex-derivatives/quotes_SOLF0:USTF0_20250509
["timestamp","ask_amount","ask_price","bid_price","bid_amount"]
[1746829965687,5.7754,173.14,173.09,1.0]
[1746829965895,1.9001,173.15,173.09,1.0]
[1746829966396,5.7755,173.14,173.1,5.7765]
[1746829966897,5.7757,173.13,173.09,6.7768]
[1746829967489,5.7755,173.14,173.1,5.7767]
[1746829967896,5.7763,173.12,173.09,1.0]
[1746829968092,6.08271343,173.13,173.09,1.0]
[1746829968390,6.08271343,173.14,173.09,1.0]
[1746829969293,6.08271343,173.11,173.09,1.0]
[1746829969499,49.84,173.12,173.09,1.0]
[1746829969798,6.08271343,173.11,173.09,1.0]
[1746829970097,11.85911343,173.11,173.09,1.0]
[1746829972902,5.7767,173.1,173.09,1.0]
[1746829973802,11.85921343,173.11,173.09,1.0]
[1746829974902,5.7767,173.1,173.09,1.0]
[1746829978508,7.96291343,173.11,173.05,5.7781]
[1746829978901,5.7773,173.09,173.05,5.7781]
[1746829981907,1.8802,173.11,173.02,25.92]
[1746829982806,24.92,173.12,173.02,25.92]
[1746829983909,5.7765,173.11,173.06,5.7779]
[1746829984108,24.92,173.12,173.02,1.0]
[1746829984309,31.00271343,173.12,173.02,1.0]
[1746829984504,32.80411343,173.12,173.02,1.0]
[1746829984706,32.80411343,173.12,173.02,6.7792]
[1746829985310,5.7781,173.06,173.02,6.7792]
[1746829985609,24.98,173.08,173.02,1.0]
[1746829985806,49.9,173.08,173.02,1.0]
[1746829986005,51.8532,173.08,173.02,1.0]
[1746829986403,5.7789,173.04,173.02,1.0]
[1746829986609,1.882,173.07,173.02,1.0]
[1746829986812,51.8532,173.08,173.02,1.0]
[1746829988009,5.7781,173.06,173.02,6.7791]
[1746829988213,51.8532,173.08,173.02,6.7791]
[1746829988513,5.7779,173.07,173.02,6.7791]
[1746829989114,5.778,173.06,173.02,6.7791]
[1746829991513,51.8532,173.08,173.02,1.0]
[1746829991714,6.08271343,173.06,173.02,1.0]
[1746829992013,5.7789,173.04,173.02,1.0]
[1746829992209,24.98,173.03,173.02,1.0]
[1746829993809,30.759,173.03,173.02,1.0]
[1746829997611,31.06271343,173.03,172.97,1.0]
[1746829998112,5.7801,173.0,172.97,1.0]
[1746829998809,5.7804,172.99,172.97,1.0]
[1746829999013,31.06271343,173.03,172.97,1.0]
[1746830000320,5.7802,173.0,172.97,1.0]
[1746830000819,31.06271343,173.03,172.97,1.0]
[1746830001023,5.7801,173.0,172.97,1.0]
[1746830003815,3.773,173.05,172.97,1.0]
[1746830004017,24.98,173.04,172.97,1.0]
[1746830004215,49.96,173.05,172.97,1.0]
[1746830004415,5.779,173.03,173.0,5.78]
[1746830004720,49.96,173.05,173.0,5.78]
[1746830005215,5.7789,173.04,173.0,5.78]
[1746830005511,5.7789,173.04,173.01,5.7796]
[1746830006218,55.7385,173.05,173.01,5.7796]
[1746830006520,49.96,173.05,173.01,5.7796]
[1746830006820,5.7789,173.04,173.01,5.7796]
[1746830009420,5.779,173.03,173.01,5.7796]
[1746830011023,5.7788,173.04,173.01,5.7796]
[1746830013218,5.779,173.03,173.01,5.7796]
[1746830013420,24.98,173.05,173.01,5.7796]
[1746830013824,5.7788,173.04,173.01,5.7796]
[1746830018826,24.98,173.05,172.97,1.0]
[1746830020026,5.7792,173.03,172.97,1.0]
[1746830020324,24.98,173.05,172.97,1.0]
[1746830020525,5.7789,173.04,172.97,1.0]
[1746830021524,6.08271343,173.06,172.97,1.0]
[1746830021729,365.0,173.07,172.98,24.86]
[1746830022329,370.778,173.07,173.04,5.7785]
[1746830022920,370.778,173.07,173.05,5.7783]
[1746830023331,370.778,173.07,173.0,24.86]
[1746830023628,5.778,173.07,173.0,24.86]
[1746830023825,5.778,173.07,173.04,5.7785]
[1746830026029,30.6374,173.08,173.05,5.7783]
[1746830026629,30.6374,173.08,173.0,24.86]
[1746830027331,30.6374,173.08,173.05,5.7781]
[1746830027833,5.7777,173.07,173.05,5.7781]
[1746830028837,24.86,173.08,173.05,5.7781]
[1746830029637,30.6375,173.08,173.06,5.7779]
[1746830030631,5.7775,173.08,173.06,5.7779]
[1746830031439,5.7775,173.08,173.05,5.7783]
[1746830032235,5.7778,173.07,173.04,5.7785]
[1746830033237,28.5109,173.1,173.04,5.7785]
[1746830034138,5.7779,173.07,173.04,5.7785]
[1746830035241,28.5109,173.1,173.04,5.7785]
[1746830035742,5.7779,173.07,173.04,5.7785]
[1746830036543,5.7781,173.06,173.04,5.7785]
[1746830037140,5.7778,173.07,173.04,5.7785]
[1746830037742,9.67308161,173.07,173.04,5.7785]
[1746830038345,5.778,173.06,173.04,5.7785]
[1746830038544,3.89528161,173.07,173.04,5.7785]
[1746830039645,9.67318161,173.07,173.04,5.7785]
[1746830041147,3.89528161,173.07,173.01,49.72]
[1746830041648,5.778,173.06,173.03,5.7787]
[1746830041849,3.89528161,173.07,173.01,49.72]
[1746830042249,9.67318161,173.07,173.04,5.7786]
[1746830043356,5.778,173.06,173.03,5.7789]
[1746830044856,9.67308161,173.07,173.04,5.7786]
[1746830048655,9.67308161,173.07,173.03,5.7789]
[1746830048958,3.89528161,173.05,172.98,1.0]
[1746830049147,3.89528161,173.0,172.98,6.7806]
[1746830049751,3.89528161,173.0,172.99,5.7803]
[1746830049953,24.84,173.07,172.98,4.89528161]
[1746830050152,28.73528161,173.07,173.0,3.89528161]
[1746830050448,3.89528161,173.07,173.0,28.75528161]
[1746830051053,3.89528161,173.07,173.05,5.7782]
[1746830051256,9.67298161,173.07,173.05,5.7782]
[1746830053155,3.89528161,173.07,173.05,5.7782]
[1746830053756,30.6375,173.08,173.05,5.7782]
[1746830055057,24.86,173.08,173.06,5.778]
[1746830055258,24.86,173.08,173.0,24.86]
[1746830055853,30.6374,173.08,173.05,5.7781]
[1746830056054,5.7774,173.08,173.05,5.7781]
[1746830056755,5.7771,173.09,173.0,24.86]
[1746830057355,5.7771,173.09,173.06,5.7778]
[1746830058158,30.6169,173.1,173.07,5.7775]
[1746830058358,24.84,173.1,173.07,5.7775]
[1746830058958,24.84,173.11,173.08,5.7773]
[1746830059159,49.68,173.11,173.0,24.86]
[1746830059562,5.7771,173.09,173.06,5.7778]
[1746830061161,5.7768,173.1,173.07,5.7776]
[1746830061661,49.68,173.11,173.0,24.86]
[1746830061860,5.7768,173.1,173.07,5.7776]
[1746830065468,5.7768,173.1,173.08,5.7773]
[1746830066067,5.7768,173.1,173.07,5.7776]
[1746830067168,49.68,173.11,173.07,5.7776]
[1746830067668,5.777,173.1,173.07,5.7776]
[1746830067869,5.777,173.1,173.06,5.7779]
[1746830069171,5.7771,173.09,173.06,5.7779]
[1746830073674,9.67172603,173.09,173.06,5.7779]
[1746830074174,3.89462603,173.09,173.06,5.7779]
[1746830074975,9.67182603,173.09,173.06,5.7779]
[1746830076677,3.89462603,173.09,173.02,24.84]
[1746830077879,3.89462603,173.09,173.08,5.7773]
[1746830078070,3.89462603,173.09,173.02,24.84]
[1746830078774,3.89462603,173.09,173.07,5.7775]
[1746830078972,3.89462603,173.09,173.02,24.84]
[1746830079373,3.89462603,173.09,173.02,26.7968]
[1746830079978,3.89462603,173.09,173.07,5.7774]
[1746830080879,3.89462603,173.09,173.08,5.7773]
[1746830081179,3.89462603,173.09,173.02,26.7968]
[1746830082281,3.89462603,173.09,173.07,5.7774]
[1746830082480,3.89462603,173.09,173.02,26.7968]
[1746830082779,3.89462603,173.09,173.07,5.7775]
[1746830083681,3.89462603,173.09,173.08,5.7773]
[1746830085082,3.89462603,173.09,173.07,5.7776]
[1746830085482,9.67136139,173.1,173.07,5.7776]
[1746830085983,3.89470055,173.09,173.07,5.7776]
[1746830087678,3.89470055,173.09,173.02,26.7968]
[1746830087879,3.89470055,173.05,172.99,24.82]
[1746830088479,3.89470055,173.06,172.99,24.82]
[1746830089686,9.67280055,173.06,172.99,24.82]
[1746830089875,9.67280055,173.06,173.02,5.7791]
[1746830090281,5.7781,173.06,173.02,5.7791]
[1746830090481,9.67280055,173.06,173.03,5.7789]
[1746830094587,9.67280055,173.06,173.04,5.7787]
[1746830094883,3.89470055,173.06,173.04,5.7787]
[1746830101986,9.67270055,173.06,173.03,5.7789]
[1746830102187,3.89470055,173.04,172.98,115.38210798]
[1746830102384,3.89470055,173.01,172.98,115.38210798]
[1746830102579,3.89470055,173.01,172.99,5.78]
[1746830102788,3.89470055,173.01,172.98,115.38210798]
[1746830102983,3.89470055,173.01,172.99,5.7801]
[1746830104088,3.89470055,173.01,172.98,121.16260798]
[1746830104785,9.67440055,173.01,172.98,121.16260798]
[1746830104994,9.67440055,173.01,172.98,115.38210798]
[1746830105790,3.89470055,173.01,172.98,121.16270798]
[1746830106988,3.89470055,173.01,172.98,7.7806]
[1746830107491,3.89470055,173.01,172.99,5.7802]
[1746830108393,3.89470055,173.01,172.98,7.7806]
[1746830108888,9.67450055,173.01,172.98,7.7806]
[1746830110386,9.67450055,173.01,172.98,2.0]
[1746830110591,3.89470055,172.99,172.98,2.0]
[1746830111286,9.67500055,172.99,172.98,2.0]
[1746830114891,34.49500055,172.99,172.98,2.0]
[1746830117896,28.71470055,172.99,172.98,2.0]
[1746830119198,34.49500055,172.99,172.98,2.0]
[1746830121001,28.71470055,172.99,172.98,2.0]
[1746830124901,3.89470055,173.01,172.98,2.0]
[1746830125101,24.82,173.0,172.98,2.0]
[1746830125504,24.82,173.0,172.99,5.7803]
[1746830127406,24.82,173.0,172.98,7.7806]
[1746830127907,28.71470055,173.0,172.98,2.0]
[1746830129005,34.49470055,173.0,172.98,7.7806]
[1746830129205,34.49470055,173.0,172.98,2.0]
[1746830130409,5.7803,172.99,172.98,2.0]
[1746830133809,34.49480055,173.0,172.98,2.0]
[1746830135007,30.6001,173.0,172.98,2.0]
[1746830135212,3.89470055,172.99,172.98,2.0]
[1746830136112,24.82,173.03,172.98,2.0]
[1746830136314,24.82,173.07,173.0,3.89470055]
[1746830136515,28.71470055,173.1,173.02,3.89470055]
[1746830136716,24.82,173.1,173.04,3.89470055]
[1746830137020,28.71470055,173.1,173.04,3.89470055]
[1746830137212,34.49160055,173.1,173.06,5.7778]
[1746830137718,30.5969,173.1,173.07,5.7776]
[1746830138121,24.82,173.1,173.07,5.7776]
[1746830138320,24.82,173.1,173.08,5.7772]
[1746830138509,24.82,173.1,172.99,30.90435448]
[1746830138510,6.08435448,173.14,173.03,24.82]
[1746830138708,30.90435448,173.14,173.04,28.7242]
[1746830138921,30.90435448,173.14,173.1,5.7763]
[1746830139120,24.82,173.13,173.04,28.7242]
[1746830139417,24.82,173.13,173.09,5.7768]
[1746830139621,24.82,173.13,173.04,28.7242]
[1746830140823,24.8,173.13,173.11,5.7762]
[1746830148527,24.8,173.13,173.1,5.7766]
[1746830148729,24.8,173.13,173.04,28.7242]
[1746830149928,24.8,173.13,173.11,5.7762]
[1746830150124,26.7045,173.19,173.09,24.78]
[1746830150425,51.5045,173.19,173.1,26.6586]
[1746830151128,24.8,173.18,173.1,26.6586]
[1746830151930,24.8,173.18,173.16,5.7744]
[1746830152427,24.8,173.18,173.1,26.6586]
[1746830155030,24.8,173.18,173.17,5.7743]
[1746830158931,30.88435448,173.18,173.16,5.7745]
[1746830159235,30.88435448,173.18,173.1,26.6586]
[1746830160439,36.65845448,173.18,173.14,5.7751]
[1746830161240,30.88435448,173.18,173.15,5.7749]
[1746830162839,36.65845448,173.18,173.14,5.7752]
[1746830164241,5.7744,173.17,173.14,5.7752]
[1746830164741,36.65845448,173.18,173.14,5.7752]
[1746830170743,5.7744,173.17,173.1,1.8786]
[1746830170950,6.08435448,173.15,173.07,25.78]
[1746830171246,24.78,173.14,173.07,1.0]
[1746830171646,30.5555,173.14,173.07,1.0]
[1746830172349,24.78,173.14,173.11,5.7762]
[1746830173247,30.5553,173.14,173.11,5.7762]
[1746830175155,5.776,173.12,173.07,1.0]
[1746830175348,6.08435448,173.12,173.07,1.0]
[1746830175651,24.76,173.11,173.07,1.0]
[1746830175851,24.78,173.1,173.07,1.0]
[1746830176245,6.08435448,173.09,173.07,1.0]
[1746830176650,11.86165448,173.09,173.07,1.0]
[1746830176850,6.08435448,173.09,173.07,1.0]
[1746830178952,11.86145448,173.09,173.07,1.0]
[1746830180955,5.7771,173.09,173.07,1.0]
[1746830182857,36.62095448,173.11,173.07,1.0]
[1746830183059,24.78,173.1,173.07,1.0]
[1746830183759,49.54,173.11,173.07,1.0]
[1746830184161,49.54,173.11,173.1,5.7767]
[1746830184859,24.78,173.14,173.12,5.776]
[1746830185063,24.78,173.13,173.12,5.776]
[1746830189467,30.86435448,173.17,173.08,1.9181]
[1746830189658,24.78,173.16,173.08,1.9181]
[1746830189969,24.78,173.17,173.08,1.9181]
[1746830190259,49.56,173.17,173.08,1.9181]
[1746830190865,55.3344,173.17,173.08,1.9181]
[1746830191167,55.3344,173.17,173.13,5.7754]
[1746830191368,49.56,173.17,173.08,1.9181]
[1746830191661,49.56,173.17,173.12,5.7758]
[1746830191866,49.56,173.17,173.08,1.9181]
[1746830192965,5.7749,173.16,173.13,5.7756]
[1746830193266,49.56,173.17,173.08,1.9181]
[1746830193967,5.775,173.15,173.12,5.7758]
[1746830194771,55.64435448,173.17,173.08,1.9181]
[1746830195866,5.7758,173.13,173.1,5.7766]
[1746830196468,5.7758,173.13,173.09,5.7769]
[1746830196767,5.7761,173.12,173.09,5.7769]
[1746830200567,5.7761,173.12,173.08,7.6953]
[1746830200870,24.78,173.14,173.07,1.0]
[1746830201070,24.76,173.13,173.07,6.7776]
[1746830201268,5.7767,173.11,173.07,6.7776]
[1746830201971,5.7768,173.1,173.07,6.7776]
[1746830202164,5.7768,173.1,173.07,1.0]
[1746830202369,24.76,173.1,173.07,1.0]
[1746830202569,5.7773,173.08,173.07,1.0]
[1746830202764,24.76,173.1,173.07,1.0]
[1746830203573,5.7772,173.09,173.07,1.0]
[1746830206170,5.7773,173.08,173.07,1.0]
[1746830209270,5.7791,173.03,173.0,1.9116]
[1746830209473,24.76,173.06,172.99,24.76]
[1746830209673,24.76,173.06,172.98,2.0]
[1746830209674,24.76,173.05,172.98,2.0]
[1746830210473,5.7788,173.04,173.0,5.7797]
[1746830211075,30.5385,173.05,173.0,5.7797]
[1746830211874,30.5385,173.05,173.01,5.7797]
[1746830212074,30.5385,173.05,172.98,2.0]
[1746830213075,5.7787,173.04,172.98,2.0]
[1746830214376,5.7787,173.04,173.01,5.7794]
[1746830215277,30.5385,173.05,173.02,5.7793]
[1746830215478,24.76,173.05,173.02,5.7793]
[1746830215679,24.76,173.05,172.98,2.0]
[1746830216471,5.7789,173.04,173.0,5.78]
[1746830216875,24.76,173.05,173.0,5.78]
[1746830217176,24.76,173.05,173.01,5.7797]
[1746830218782,24.76,173.05,172.98,2.0]
[1746830219981,30.5384,173.05,172.98,2.0]
[1746830220277,24.76,173.05,172.98,2.0]
[1746830220481,5.7794,173.02,172.99,5.7803]
[1746830220781,24.78,173.02,172.99,5.7803]
[1746830221483,30.5595,173.02,172.99,5.7803]
[1746830221682,24.78,173.02,172.98,2.0]
[1746830222380,5.7799,173.01,172.98,7.7806]
[1746830222682,24.78,173.02,172.98,2.0]
[1746830222883,5.7802,173.0,172.98,2.0]
[1746830225386,5.7803,172.99,172.98,2.0]
[1746830230490,5.8383,173.0,172.96,1.0]
[1746830232090,5.781,172.97,172.96,1.0]
[1746830232285,55.341,172.97,172.96,1.0]
[1746830238291,5.7813,172.96,172.95,1.0]
[1746830241398,5.8383,173.0,172.95,1.0]
[1746830241597,49.54,172.99,172.95,1.0]
[1746830241998,24.76,172.99,172.95,1.0]
[1746830242299,24.78,172.98,172.95,1.0]
[1746830243099,5.7812,172.97,172.95,1.0]
[1746830243701,24.78,172.98,172.95,1.0]
[1746830244400,24.78,172.98,172.95,6.7816]
[1746830245502,30.5609,172.98,172.95,1.0]
[1746830246002,5.781,172.97,172.95,1.0]
[1746830246998,24.78,172.98,172.95,1.0]
[1746830248002,5.7813,172.96,172.95,1.0]
[1746830249004,24.78,172.98,172.92,2.0]
[1746830249005,5.7823,172.93,172.92,2.0]
[1746830267829,24.76,172.95,172.92,2.0]
[1746830268027,24.78,172.94,172.92,2.0]
[1746830269029,5.7823,172.93,172.92,2.0]
[1746830270626,30.5621,172.94,172.92,2.0]
[1746830271832,3.90135676,172.93,172.92,2.0]
[1746830273122,9.68365676,172.93,172.92,2.0]
[1746830275729,5.7823,172.93,172.92,2.0]
[1746830280432,30.5623,172.93,172.92,2.0]
[1746830292438,5.7839,172.89,172.85,5.7849]
[1746830292634,24.76,172.89,172.84,4.7438]
[1746830292934,24.76,172.89,172.84,2.9253]
[1746830293137,24.76,172.89,172.84,1.0]
[1746830293540,5.7845,172.87,172.84,1.0]
[1746830294843,6.09680724,172.93,172.84,1.0]
[1746830295034,49.52,172.92,172.84,1.0]
[1746830295340,49.52,172.92,172.84,2.9598]
[1746830295734,9.68562039,172.91,172.86,5.7844]
[1746830296035,5.7833,172.91,172.86,5.7844]
[1746830296239,5.7834,172.9,172.87,5.7843]
[1746830296939,9.68542039,172.91,172.87,5.7843]
[1746830297242,3.90232039,172.91,172.87,5.7843]
[1746830298341,5.7836,172.9,172.87,5.7843]
[1746830298943,3.90232039,172.89,172.84,1.0]
[1746830299136,3.90232039,172.87,172.84,1.0]
[1746830299535,9.68692039,172.87,172.84,1.0]
[1746830301043,9.68692039,172.87,172.84,6.7854]
[1746830301841,5.7846,172.87,172.84,6.7854]
[1746830302143,55.3042,172.88,172.84,6.7854]
[1746830302841,55.3042,172.88,172.84,1.0]
[1746830303348,5.7845,172.87,172.84,1.0]
[1746830303641,49.52,172.88,172.84,1.0]
[1746830303835,5.7849,172.86,172.84,1.0]
[1746830304033,49.52,172.88,172.84,1.0]
[1746830305942,5.7844,172.87,172.84,6.7852]
[1746830306242,49.52,172.88,172.84,1.0]
[1746830306442,365.0,172.93,172.84,1.0]
[1746830306443,24.76,172.89,172.84,1.0]
[1746830306839,24.76,172.91,172.84,1.0]
[1746830307142,30.5431,172.91,172.88,5.7838]
[1746830307347,5.7831,172.91,172.88,5.7838]
[1746830307543,30.5431,172.91,172.88,5.7838]
[1746830308746,24.76,172.91,172.89,5.7836]
[1746830309245,24.76,172.91,172.85,1.8974]
[1746830310346,5.7834,172.9,172.87,5.7841]
[1746830312348,30.5431,172.91,172.88,5.784]
[1746830312648,24.76,172.91,172.85,1.8974]
[1746830314048,49.52,172.92,172.85,1.8974]
[1746830314248,55.3029,172.92,172.89,5.7835]
[1746830315353,24.76,172.92,172.85,1.8974]
[1746830315548,24.76,172.95,172.85,28.5739]
[1746830315749,49.52,172.95,172.86,1.7871]
[1746830315954,49.52,172.95,172.93,5.7822]
[1746830316855,49.52,172.95,172.87,24.76]
[1746830317249,24.76,172.95,172.87,24.76]
[1746830318352,24.76,172.95,172.94,5.782]
[1746830319154,24.76,172.96,172.95,5.7817]
[1746830321856,24.76,172.99,172.87,24.76]
[1746830322055,24.76,172.98,172.87,24.76]
[1746830322455,24.76,172.98,172.96,5.7811]
[1746830322851,24.76,172.99,172.89,24.76]
[1746830323155,24.76,172.98,172.97,5.7808]
[1746830323356,24.76,172.99,172.97,5.7808]
[1746830323556,24.74,172.98,172.97,5.7808]
[1746830329163,49.5,172.99,172.97,5.7808]
[1746830329865,53.39930281,172.99,172.97,5.7808]
[1746830330462,53.39930281,172.99,172.91,24.76]
[1746830330656,3.89930281,172.95,172.88,3.89930281]
[1746830330856,28.63930281,172.95,172.88,3.89930281]
[1746830331061,53.37930281,172.95,172.88,3.89930281]
[1746830331362,59.16120281,172.95,172.88,3.89930281]
[1746830331865,55.2619,172.95,172.92,5.7827]
[1746830333167,49.48,172.95,172.91,5.7829]
[1746830333366,49.48,172.95,172.87,24.74]
[1746830333967,5.7822,172.94,172.91,5.7828]
[1746830335871,5.7822,172.94,172.92,5.7826]
[1746830336373,55.2617,172.95,172.92,5.7826]
[1746830336570,49.48,172.95,172.87,24.74]
[1746830337073,24.74,172.95,172.94,5.782]
[1746830339473,24.74,172.95,172.93,5.7822]
[1746830344776,24.74,172.95,172.94,5.782]
[1746830344969,49.48,172.98,172.87,24.74]
[1746830345173,24.74,172.98,172.89,30.83613008]
[1746830345476,30.5198,173.01,172.98,5.7805]
[1746830345879,5.7798,173.01,172.98,5.7805]
[1746830346181,55.2594,173.02,172.99,5.7803]
[1746830346481,5.7797,173.01,172.98,5.7805]
[1746830348481,30.4997,173.01,172.98,5.7805]
[1746830350288,5.78,173.0,172.93,26.6081]
[1746830350480,24.72,173.01,172.93,26.6081]
[1746830350676,24.72,173.01,172.93,24.74]
[1746830350881,5.7808,172.98,172.9,24.74]
[1746830351288,5.7808,172.98,172.94,5.7817]
[1746830352088,5.7808,172.98,172.95,5.7816]
[1746830353191,5.7811,172.97,172.9,24.74]
[1746830353884,9.71463008,173.0,172.9,24.74]
[1746830354190,9.71463008,173.0,172.93,5.7823]
[1746830354388,5.7812,172.97,172.93,5.7823]
[1746830354588,30.5012,172.97,172.93,5.7823]
[1746830355391,30.5012,172.97,172.94,5.782]
[1746830359487,30.5012,172.97,172.93,5.7822]
[1746830360292,5.7814,172.96,172.93,5.7822]
[1746830361894,5.7818,172.95,172.91,5.7827]
[1746830362191,24.72,172.97,172.9,24.74]
[1746830362793,5.7818,172.95,172.92,5.7824]
[1746830370898,5.7817,172.95,172.92,5.7824]
[1746830373803,5.7821,172.94,172.91,5.7829]
[1746830374003,3.90070309,172.94,172.88,128.32071972]
[1746830374208,5.7825,172.93,172.9,5.7831]
[1746830374802,9.68290309,172.94,172.88,128.32071972]
[1746830375302,9.68290309,172.94,172.91,5.7828]
[1746830375707,9.68290309,172.94,172.88,128.32071972]
[1746830376609,9.68290309,172.94,172.92,5.7827]
[1746830377508,9.68290309,172.94,172.91,5.7829]
[1746830379913,9.68290309,172.94,172.92,5.7826]
[1746830381413,5.7822,172.94,172.92,5.7826]
[1746830381610,9.68290309,172.94,172.92,5.7826]
[1746830382812,3.90070309,172.94,172.92,5.7826]
[1746830390613,3.90070309,172.94,172.93,5.7823]
[1746830392810,24.72,172.96,172.89,3.90070309]
[1746830393117,53.30070309,172.99,172.91,3.90070309]
[1746830393414,53.30070309,172.99,172.98,5.7807]
[1746830396216,28.60070309,172.99,172.98,5.7807]
[1746830398321,28.60070309,172.99,172.97,5.7809]
[1746830398623,28.60070309,172.99,172.91,28.60070309]
[1746830400018,24.7,172.98,172.91,28.60070309]
[1746830401019,24.7,172.98,172.97,5.7807]
[1746830402422,24.7,172.98,172.96,5.7812]
[1746830402718,3.90070309,172.97,172.91,24.7]
[1746830402918,3.90070309,172.95,172.89,3.90070309]
[1746830403620,3.90070309,172.95,172.93,5.782]
[1746830403922,3.90070309,172.95,172.88,128.32071972]
[1746830404216,9.68250309,172.95,172.92,5.7824]
[1746830404721,3.90070309,172.95,172.93,5.7823]
[1746830404917,3.90070309,172.95,172.88,128.32071972]
[1746830405313,3.90070309,172.95,172.93,5.7821]
[1746830409221,9.68250309,172.95,172.92,5.7827]
[1746830409422,3.90070309,172.93,172.88,128.32071972]
[1746830409620,3.90070309,172.91,172.88,128.32071972]
[1746830410021,3.90070309,172.91,172.9,5.7833]
[1746830412025,3.90070309,172.91,172.89,5.7836]
[1746830416731,3.90070309,172.91,172.88,134.10461972]
[1746830418635,9.68370309,172.91,172.88,134.10461972]
[1746830422232,5.7835,172.9,172.88,128.32071972]
[1746830422536,3.90070309,172.89,172.84,3.0]
[1746830423233,5.7841,172.88,172.85,5.7848]
[1746830425543,9.68510309,172.87,172.84,3.0]
[1746830425734,3.90070309,172.85,172.84,3.0]
[1746830426429,9.68570309,172.85,172.84,3.0]
[1746830428333,28.58070309,172.86,172.84,3.0]
[1746830431142,34.36550309,172.86,172.84,3.0]
[1746830434143,5.785,172.85,172.84,3.0]
[1746830444553,5.7846,172.87,172.84,3.0]
[1746830444749,24.68,172.86,172.84,3.0]
[1746830446755,30.4647,172.86,172.84,3.0]
[1746830453458,24.68,172.86,172.84,8.7853]
[1746830453655,34.36520309,172.87,172.84,8.7853]
[1746830454361,34.36520309,172.87,172.84,3.0]
[1746830454658,5.7849,172.86,172.84,3.0]
[1746830455157,28.58070309,172.87,172.84,3.0]
[1746830455851,5.7849,172.86,172.84,3.0]
[1746830457057,9.68570309,172.85,172.84,3.0]
[1746830464862,5.786,172.82,172.81,1.0]
[1746830465061,53.22070309,172.82,172.75,5.7881]
[1746830465266,3.90070309,172.8,172.75,5.7881]
[1746830465454,3.90070309,172.8,172.74,24.66]
[1746830465655,3.90070309,172.8,172.72,3.9167]
[1746830465855,3.90070309,172.78,172.72,3.9167]
[1746830466060,3.90070309,172.78,172.72,9.706]
[1746830466061,5.788,172.77,172.72,9.706]
[1746830466257,28.56070309,172.78,172.72,3.9167]
[1746830466462,3.90070309,172.74,172.71,128.73303592]
[1746830466665,9.68960309,172.74,172.71,128.73303592]
[1746830467065,9.68960309,172.74,172.72,1.0]
[1746830467262,3.90070309,172.74,172.72,1.0]
[1746830467867,5.7886,172.75,172.72,1.0]
[1746830468668,30.4488,172.74,172.72,1.0]
[1746830468969,24.66,172.74,172.72,1.0]
[1746830469771,5.789,172.73,172.72,1.0]
[1746830470370,49.34,172.74,172.72,1.0]
[1746830472770,55.1287,172.74,172.72,1.0]
[1746830473871,5.789,172.73,172.72,1.0]
[1746830482777,30.469,172.73,172.72,1.0]
[1746830490383,365.0,172.79,172.72,1.0]
[1746830490587,24.68,172.79,172.76,3.91043094]
[1746830490786,24.66,172.81,172.78,3.91043094]
[1746830490982,55.1065,172.81,172.78,3.91043094]